bitfinex/quotes_SOLUSD_20241028
["timestamp","ask_amount","ask_price","bid_price","bid_amount"]
[1730093823126,5.7441,174.09,174.0,15.7568]
[1730093823127,5.7441,174.09,174.03,14.34006313]
[1730093823439,14.34006313,174.07,174.03,6.084]
[1730093824018,14.34006313,174.04,173.89,16.5948]
[1730093824229,14.34006313,173.97,173.91,14.34006313]
[1730093824408,14.34006313,173.99,173.93,14.34006313]
[1730093824730,20.1069,174.07,173.96,14.34006313]
[1730093824915,14.34006313,174.04,173.98,14.34006313]
[1730093825340,14.34006313,174.03,173.97,14.34006313]
[1730093825525,14.34006313,174.05,173.99,14.34006313]
[1730093825840,20.1069,174.07,173.94,0.35098]
[1730093825841,5.7449,174.07,174.02,14.34006313]
[1730093826153,14.34006313,174.04,173.98,14.34006313]
[1730093827042,14.34006313,174.02,173.96,43.04936313]
[1730093828238,20.08656313,174.02,173.96,43.04936313]
[1730093828541,5.7465,174.02,173.97,14.34006313]
[1730093828749,20.08656313,174.02,173.96,43.04936313]
[1730093828939,5.7465,174.02,173.97,14.34006313]
[1730093829132,5.7465,174.02,173.98,14.34006313]
[1730093829329,14.34006313,174.03,173.97,14.34006313]
[1730093829634,20.08646313,174.03,173.97,14.34006313]
[1730093830241,20.08646313,174.03,173.97,20.08816313]
[1730093830618,14.34006313,174.02,173.96,57.42036313]
[1730093831344,20.08646313,174.03,173.97,14.34006313]
[1730093831720,14.34006313,174.04,173.98,14.34006313]
[1730093831940,20.2021,174.11,174.02,14.34006313]
[1730093831941,14.34006313,174.07,174.02,14.34006313]
[1730093832141,14.34006313,174.08,174.02,14.34006313]
[1730093832345,14.34006313,174.07,174.02,14.34006313]
[1730093832642,14.34006313,174.03,173.97,20.0]
[1730093832845,14.34006313,174.0,173.96,22.9609]
[1730093834036,20.08726313,174.0,173.96,22.9609]
[1730093834434,5.7472,174.0,173.96,37.30096313]
[1730093835044,20.08726313,174.0,173.96,22.9609]
[1730093835246,20.08726313,174.0,173.96,16.4948]
[1730093835247,5.7472,174.0,173.96,16.4948]
[1730093835452,20.08726313,174.0,173.96,16.4948]
[1730093836544,14.34006313,174.0,173.96,16.4948]
[1730093836833,5.7468,174.01,173.96,16.4948]
[1730093836834,20.08686313,174.01,173.96,30.83486313]
[1730093837836,20.1041,174.1,174.0,14.34006313]
[1730093838030,14.34006313,174.06,174.01,20.08656313]
[1730093838240,14.34006313,174.06,174.01,28.70696313]
[1730093839350,14.34006313,174.06,174.01,34.45366313]
[1730093839747,5.7434,174.11,174.01,34.45366313]
[1730093839748,14.34006313,174.08,174.02,14.34006313]
[1730093840264,14.34006313,174.08,174.02,20.08636313]
[1730093840472,14.34006313,174.07,174.02,20.08636313]
[1730093841370,14.34006313,174.05,174.0,20.45296313]
[1730093841550,14.34006313,174.04,173.99,14.34006313]
[1730093841945,14.34006313,174.06,174.0,14.34006313]
[1730093842152,14.34006313,174.06,174.01,14.34006313]
[1730093842468,14.34006313,174.05,174.0,20.08686313]
[1730093842769,14.34006313,174.03,173.98,14.34006313]
[1730093843070,14.34006313,174.05,173.99,14.34006313]
[1730093844375,5.7458,174.04,173.99,14.34006313]
[1730093844768,5.7458,174.04,173.99,20.08746313]
[1730093845265,14.34006313,174.01,173.96,22.6077]
[1730093845468,14.34006313,174.0,173.96,22.6077]
[1730093845769,14.34006313,174.01,173.96,28.356]
[1730093845977,14.34006313,174.01,173.96,42.69606313]
[1730093846346,14.34006313,174.01,173.96,57.06716313]
[1730093846772,20.08686313,174.01,173.96,57.06716313]
[1730093847278,14.34006313,174.01,173.96,57.06716313]
[1730093847461,20.08656313,174.02,173.96,57.06716313]
[1730093847771,14.34006313,174.01,173.96,57.06716313]
[1730093848152,20.08656313,174.02,173.97,14.34006313]
[1730093848563,20.08656313,174.02,173.97,5.748]
[1730093849451,20.08656313,174.02,173.97,34.45826313]
[1730093849869,14.34006313,174.01,173.97,20.1182]
[1730093850771,14.34006313,174.01,173.97,14.3702]
[1730093850957,14.34006313,173.99,173.94,14.34006313]
[1730093851154,14.34006313,174.0,173.94,14.34006313]
[1730093851359,14.34006313,174.0,173.95,14.34006313]
[1730093851575,14.34006313,174.02,173.96,14.34006313]
[1730093851871,44.580974,174.07,173.94,14.3727]
[1730093851872,14.34006313,174.04,173.99,14.34006313]
[1730093852071,14.34006313,174.05,174.0,14.34006313]
[1730093852283,14.46555313,174.05,174.0,14.34006313]
[1730093852457,14.34006313,174.05,174.0,14.34006313]
[1730093852656,20.08566313,174.05,174.0,20.08706313]
[1730093853077,14.34006313,174.07,174.01,14.34006313]
[1730093853380,14.34006313,174.06,174.01,14.34006313]
[1730093853676,14.34006313,174.06,174.0,34.45486313]
[1730093854185,14.34006313,174.06,174.01,14.34006313]
[1730093854481,14.34006313,174.07,174.02,14.34006313]
[1730093855760,5.7434,174.11,174.0,20.1148]
[1730093855761,14.34006313,174.06,174.01,14.34006313]
[1730093856158,14.34006313,174.05,174.0,34.45486313]
[1730093856763,20.08526313,174.06,174.0,34.45486313]
[1730093857380,14.34006313,174.04,174.0,14.3678]
[1730093857683,5.7452,174.06,173.99,35.12016313]
[1730093857684,14.34006313,174.03,173.99,15.0328]
[1730093858057,14.34006313,174.04,173.99,15.0328]
[1730093858469,20.08606313,174.04,173.99,35.12026313]
[1730093859082,5.746,174.04,174.0,14.34006313]
[1730093859883,5.746,174.04,173.99,49.48886313]
[1730093860781,5.7455,174.05,174.0,14.34006313]
[1730093861288,20.08506313,174.07,174.01,14.34006313]
[1730093861482,20.08506313,174.07,173.99,35.1488]
[1730093861483,20.08506313,174.07,174.02,14.34006313]
[1730093862265,20.08506313,174.07,174.01,14.34006313]
[1730093862587,14.34006313,174.06,174.01,14.34006313]
[1730093862792,14.34006313,174.06,174.0,20.08716313]
[1730093863379,14.34006313,174.06,174.0,34.45496313]
[1730093864078,20.08526313,174.06,174.01,14.34006313]
[1730093864480,20.12549,174.07,174.02,14.34006313]
[1730093864698,0.12549,174.07,174.02,14.34006313]
[1730093865106,14.34006313,174.08,174.03,14.34006313]
[1730093865288,0.12549,174.08,174.03,14.34006313]
[1730093865802,0.12549,174.08,174.04,14.34006313]
[1730093865976,5.87019,174.08,174.04,14.34006313]
[1730093866403,5.87019,174.08,174.03,14.34006313]
[1730093866602,20.21025313,174.08,174.02,14.34006313]
[1730093866804,14.34006313,174.07,174.01,14.34006313]
[1730093866994,5.7451,174.06,174.01,20.08676313]
[1730093867883,5.7451,174.06,174.02,14.34006313]
[1730093868790,5.7451,174.06,174.01,14.34006313]
[1730093868993,5.7451,174.06,174.01,20.08666313]
[1730093869708,20.08516313,174.06,174.01,5.7466]
[1730093869895,20.08516313,174.06,174.01,20.08666313]
[1730093869896,5.7451,174.06,174.01,20.08666313]
[1730093870703,5.7451,174.06,174.01,34.45356313]
[1730093870890,5.7451,174.06,173.99,21.3076]
[1730093871089,20.08516313,174.06,174.0,14.34006313]
[1730093871288,20.08516313,174.06,174.01,14.34006313]
[1730093872110,20.08516313,174.06,174.0,14.34006313]
[1730093872498,14.88910931,174.06,174.01,5.7467]
[1730093872995,14.88910931,174.06,174.01,14.89070931]
[1730093873183,5.7451,174.06,174.01,14.89070931]
[1730093873380,5.7451,174.06,174.02,9.14400931]
[1730093873592,5.7434,174.11,174.03,9.14400931]
[1730093873827,14.88740931,174.11,174.05,9.14400931]
[1730093874125,9.14400931,174.1,174.05,9.14400931]
[1730093874414,14.88790931,174.1,174.05,5.7454]
[1730093875199,9.14400931,174.09,174.05,5.7454]
[1730093875396,14.88820931,174.09,174.03,9.14400931]
[1730093875589,9.14400931,174.08,174.02,9.14400931]
[1730093875788,9.14400931,174.08,174.03,9.14400931]
[1730093876208,9.14400931,174.08,174.02,9.14400931]
[1730093876716,14.88870931,174.08,174.03,5.7461]
[1730093876897,9.14400931,174.06,174.0,20.0]
[1730093877094,9.14400931,174.05,173.99,36.19890931]
[1730093877299,9.14400931,174.05,173.99,50.56750931]
[1730093877517,9.14400931,174.05,174.0,9.14400931]
[1730093877806,9.14400931,174.06,174.01,9.14400931]
[1730093878004,9.14400931,174.06,173.99,41.4235]
[1730093878005,9.26949931,174.07,174.02,9.14400931]
[1730093878217,5.7451,174.06,174.02,9.14400931]
[1730093878416,5.7451,174.06,174.01,14.89050931]
[1730093878593,14.88910931,174.06,174.01,14.89050931]
[1730093878913,5.7451,174.06,174.01,14.89050931]
[1730093880389,5.7451,174.06,174.02,9.14400931]
[1730093881991,28.7182,174.11,174.02,9.14400931]
[1730093881992,20.0,174.1,174.04,9.14400931]
[1730093882192,34.88780931,174.1,174.04,9.14400931]
[1730093882905,14.88780931,174.1,174.04,9.14400931]
[1730093883301,14.88780931,174.1,174.04,14.88960931]
[1730093884210,14.88780931,174.1,174.05,9.14400931]
[1730093884418,14.88780931,174.1,174.05,14.88940931]
[1730093885210,5.86899,174.11,174.06,9.14400931]
[1730093886214,5.7435,174.11,174.06,14.88880931]
[1730093886416,0.5935669,174.12,174.09,9.14400931]
[1730093886735,0.5935669,174.12,174.1,9.14400931]
[1730093887009,0.5935669,174.12,174.11,9.14400931]
[1730093887222,0.5935669,174.12,174.07,6.0943]
[1730093887423,0.5935669,174.12,174.11,9.14400931]
[1730093888623,0.5935669,174.12,174.11,14.88740931]
[1730093889820,0.5935669,174.12,174.1,14.3592]
[1730093890040,0.5935669,174.12,174.1,20.103]
[1730093890315,0.5935669,174.12,174.1,14.3592]
[1730093890528,0.5935669,174.12,174.11,9.14400931]
[1730093892118,0.5935669,174.12,174.11,14.88740931]
[1730093895197,0.5935669,174.12,174.11,5.7434]
[1730093895424,0.5935669,174.12,174.11,14.88740931]
[1730093896114,0.5935669,174.12,174.1,14.3592]
[1730093896115,0.5935669,174.12,174.1,29.24680931]
[1730093896498,0.5935669,174.12,174.11,9.14400931]
[1730093899223,0.5935669,174.12,174.11,14.88740931]
[1730093899401,0.5935669,174.12,174.08,9.14400931]
[1730093899600,0.5935669,174.12,174.08,14.88840931]
[1730093899827,0.5935669,174.12,174.09,9.14400931]
[1730093901003,0.5935669,174.12,174.08,23.50520931]
[1730093901208,9.14400931,174.11,174.06,24.28210931]
[1730093901424,9.73757621,174.12,174.07,9.14400931]
[1730093901726,0.5935669,174.12,174.07,9.14400931]
[1730093902031,9.14400931,174.11,174.06,29.5009]
[1730093902211,9.14400931,174.1,174.06,14.3628]
[1730093902535,9.14400931,174.1,174.06,20.1079]
[1730093903911,9.14400931,174.09,174.03,15.40000931]
[1730093904117,9.14400931,174.08,174.04,5.7458]
[1730093904323,9.14400931,174.06,174.02,16.5272]
[1730093904618,9.14400931,174.07,174.01,9.14400931]
[1730093904817,9.14400931,174.07,174.02,9.14400931]
[1730093905019,43.902374,174.09,174.02,9.14400931]
[1730093905322,9.14400931,174.08,174.03,9.14400931]
[1730093905746,9.14400931,174.07,174.02,9.14400931]
[1730093906834,9.14400931,174.06,174.0,29.25860931]
[1730093907827,14.88890931,174.07,174.01,9.14400931]
[1730093908007,5.7449,174.07,174.02,9.14400931]
[1730093908328,5.7449,174.07,174.03,9.14400931]
[1730093908632,5.7449,174.07,174.02,9.14400931]
[1730093909937,14.88890931,174.07,174.01,14.89040931]
[1730093910139,14.88890931,174.07,174.01,29.25730931]
[1730093910428,14.88890931,174.07,174.01,20.1133]
[1730093910629,14.88890931,174.07,174.01,29.25730931]
[1730093911006,9.14400931,174.06,174.01,29.25730931]
[1730093911203,9.14400931,174.04,173.98,15.1991]
[1730093911436,9.14400931,174.04,173.99,5.7473]
[1730093912315,9.14400931,174.04,173.99,20.1159]
[1730093912515,9.14400931,174.05,173.99,29.25990931]
[1730093913535,14.88950931,174.05,173.99,29.25990931]
[1730093916344,9.14400931,174.04,173.99,29.26000931]
[1730093916634,14.88950931,174.05,174.0,9.14400931]
[1730093917638,14.88950931,174.05,174.0,14.89110931]
[1730093918317,5.7455,174.05,174.0,14.89110931]
[1730093918516,5.7444,174.08,174.01,9.14400931]
[1730093918722,9.14400931,174.06,174.01,9.14400931]
[1730093919232,9.14400931,174.06,174.0,29.25890931]
[1730093919640,14.88930931,174.06,174.0,29.25890931]
[1730093920533,9.26949931,174.05,174.0,14.3678]
[1730093920838,9.14400931,174.04,174.0,14.3678]
[1730093921717,9.14400931,174.03,173.98,20.9466]
[1730093922033,9.14400931,174.0,173.95,5.7484]
[1730093922219,9.14400931,174.01,173.95,14.89240931]
[1730093922620,14.89100931,174.01,173.95,29.26430931]
[1730093923528,14.89100931,174.01,173.96,9.14400931]
[1730093923826,29.26949931,174.03,173.98,9.14400931]
[1730093924150,43.902374,174.03,173.98,9.14400931]
[1730093924642,53.04638331,174.03,173.98,9.14400931]
[1730093925137,5.7464,174.02,173.98,9.14400931]
[1730093925344,14.89040931,174.02,173.97,9.14400931]
[1730093926844,5.7454,174.05,174.0,9.14400931]
[1730093927141,9.14400931,174.08,174.02,9.14400931]
[1730093927348,9.14400931,174.07,174.02,9.14400931]
[1730093927516,9.14400931,174.07,174.01,9.14400931]
[1730093928348,5.7454,174.05,174.01,9.14400931]
[1730093929034,5.7452,174.06,174.01,14.89070931]
[1730093930035,14.88920931,174.06,174.01,9.14400931]
[1730093931750,9.14400931,174.07,174.01,9.14400931]
[1730093933046,5.7451,174.06,174.01,9.14400931]
[1730093933235,14.88910931,174.06,174.01,9.14400931]
[1730093933963,9.14400931,174.07,174.02,9.14400931]
[1730093937151,5.7451,174.06,174.02,9.14400931]
[1730093939263,5.7448,174.07,174.02,9.14400931]
[1730093942343,5.7448,174.07,174.03,9.14400931]
[1730093942530,5.7448,174.07,174.05,9.14400931]
[1730093942731,25.7441,174.09,174.06,9.14400931]
[1730093943346,5.7441,174.09,174.06,9.14400931]
[1730093943762,5.7434,174.11,174.06,9.14400931]
[1730093944055,9.26949931,174.1,174.05,9.14400931]
[1730093944261,9.14400931,174.08,174.01,36.6664]
[1730093944558,9.14400931,174.08,174.02,9.14400931]
[1730093945038,9.14400931,174.08,174.01,36.6664]
[1730093945247,5.7448,174.07,174.02,9.14400931]
[1730093946257,5.7448,174.07,174.03,9.14400931]
[1730093948157,5.7448,174.07,174.01,36.6664]
[1730093948158,5.7448,174.07,174.02,9.14400931]
[1730093948537,9.14400931,174.07,174.02,9.14400931]
[1730093948935,29.26949931,174.08,174.02,9.14400931]
[1730093949258,9.26949931,174.08,174.02,9.14400931]
[1730093950653,5.7448,174.07,174.02,9.14400931]
[1730093950865,9.14400931,174.06,174.01,16.5529]
[1730093951061,9.14400931,174.04,173.99,9.14400931]
[1730093951552,9.14400931,174.05,173.99,9.14400931]
[1730093952136,20.12549,174.06,174.0,9.14400931]
[1730093952336,5.7454,174.05,174.0,9.14400931]
[1730093953347,14.88940931,174.05,174.0,9.14400931]
[1730093953676,14.88940931,174.05,173.99,9.14400931]
[1730093953860,9.14400931,174.04,173.98,15.66080931]
[1730093954063,9.14400931,174.03,173.97,38.84670931]
[1730093954557,9.14400931,174.01,173.97,15.3332]
[1730093955140,9.14400931,174.0,173.95,14.89270931]
[1730093956051,14.89130931,174.0,173.95,14.89270931]
[1730093956253,5.7473,174.0,173.96,9.14400931]
[1730093957959,14.89130931,174.0,173.93,22.994]
[1730093958158,9.14400931,173.99,173.94,9.14400931]
[1730093958458,14.89130931,174.0,173.95,9.14400931]
[1730093959448,14.89130931,174.0,173.94,9.14400931]
[1730093960354,14.89130931,174.0,173.94,14.89300931]
[1730093962169,14.89130931,174.0,173.95,9.14400931]
[1730093963750,14.89130931,174.0,173.94,5.749]
[1730093964070,14.89130931,174.0,173.95,9.14400931]
[1730093964877,9.14400931,173.97,173.93,30.9127]
[1730093966278,5.7467,174.01,173.96,9.14400931]
[1730093966570,5.7461,174.03,173.99,9.14400931]
[1730093967368,5.7451,174.06,173.99,9.14400931]
[1730093967567,29.14400931,174.05,173.99,9.14400931]
[1730093968477,14.88980931,174.04,173.99,9.14400931]
[1730093968845,0.12549,174.03,173.99,9.14400931]
[1730093969371,5.7464,174.02,173.99,9.14400931]
[1730093969755,5.7444,174.08,174.01,9.14400931]
[1730093969965,9.14400931,174.06,174.01,9.14400931]
[1730093970171,9.14400931,174.07,174.01,9.14400931]
[1730093970455,5.7444,174.08,174.01,9.14400931]
[1730093970456,9.14400931,174.06,174.01,9.14400931]
[1730093971474,5.7454,174.05,174.01,9.14400931]
[1730093971975,9.14400931,174.06,174.01,9.14400931]
[1730093972163,14.88803144,174.06,174.01,14.88943144]
[1730093973088,14.88803144,174.06,174.01,5.7465]
[1730093973287,14.88803144,174.06,174.01,20.1134]
[1730093973653,9.26842144,174.05,174.0,24.40023144]
[1730093974164,9.26842144,174.05,174.0,15.2573]
[1730093974866,9.26842144,174.05,173.98,14.369]
[1730093974867,9.14619453,174.03,173.98,14.369]
[1730093975466,9.14619453,174.03,173.98,20.1167]
[1730093975980,14.89259453,174.03,173.98,20.1167]
[1730093976270,9.14619453,174.02,173.98,14.369]
[1730093976869,5.7464,174.03,173.96,16.3032]
[1730093976870,9.14619453,174.01,173.96,16.3032]
[1730093977076,9.14619453,174.0,173.94,9.14619453]
[1730093977374,9.14619453,174.0,173.94,14.89519453]
[1730093977882,5.7474,173.99,173.94,23.51809453]
[1730093978785,5.7474,173.99,173.94,29.26719453]
[1730093979283,5.7474,173.99,173.95,9.14619453]
[1730093979883,5.7471,174.0,173.94,20.121]
[1730093980058,9.14619453,173.98,173.94,14.3719]
[1730093980760,0.12549,173.99,173.92,30.05049453]
[1730093980761,9.14619453,173.97,173.92,30.05049453]
[1730093981467,9.14619453,173.97,173.92,15.1546]
[1730093981887,9.14619453,173.97,173.92,20.9043]
[1730093982064,5.7484,173.96,173.92,30.05049453]
[1730093983182,9.14619453,173.98,173.92,30.05049453]
[1730093983478,5.87359,173.97,173.92,30.05049453]
[1730093984073,5.87359,173.97,173.93,9.14619453]
[1730093984982,5.87359,173.97,173.92,30.05049453]
[1730093987767,15.01978453,173.97,173.92,20.9043]
[1730093989169,5.87359,173.97,173.92,30.05049453]
[1730093990169,28.7304,174.04,173.93,9.14619453]
[1730093990497,23.902374,174.0,173.95,9.14619453]
[1730093990791,0.12549,174.0,173.96,9.14619453]
[1730093991003,5.7461,174.03,173.97,9.14619453]
[1730093991300,6.1048,174.06,173.92,35.2787]
[1730093991301,14.89129453,174.06,174.0,9.14619453]
[1730093992274,14.89129453,174.06,174.01,14.89289453]
[1730093992475,0.12549,174.05,174.01,9.14619453]
[1730093992698,14.89129453,174.06,174.01,9.14619453]
[1730093993475,5.7451,174.06,174.01,9.14619453]
[1730093993910,0.12549,174.05,174.01,9.14619453]
[1730093994578,5.87109,174.05,174.01,9.14619453]
[1730093995097,15.01728453,174.05,173.99,14.3681]
[1730093995397,9.27168453,174.01,173.98,16.645]
[1730093995580,0.12549,174.01,173.98,16.645]
[1730093996378,14.89329453,174.0,173.95,9.14619453]
[1730093996589,0.12549,173.99,173.94,31.54019453]
[1730093997179,5.7471,174.0,173.94,22.394]
[1730093997496,5.7471,174.0,173.97,9.14619453]
[1730093998298,5.87219,174.01,173.97,9.14619453]
[1730093999196,15.01838453,174.01,173.95,5.7487]
[1730093999398,15.01838453,174.01,173.95,14.89489453]
[1730093999698,15.01838453,174.01,173.96,9.14619453]
[1730094000273,9.14619453,173.98,173.94,16.645]
[1730094001296,14.89419453,173.98,173.94,16.645]
[1730094001469,14.89419453,173.98,173.93,14.89529453]
[1730094002897,14.89419453,173.98,173.92,9.14619453]
[1730094003577,14.89419453,173.98,173.91,20.1249]
[1730094003578,9.14619453,173.96,173.91,20.1249]
[1730094004280,5.748,173.98,173.93,9.14619453]
[1730094004475,5.748,173.98,173.94,9.14619453]
[1730094004791,20.0,173.98,173.94,14.89499453]
[1730094005094,20.0,173.98,173.95,9.14619453]
[1730094005898,29.14619453,173.99,173.93,23.51929453]
[1730094006285,9.27168453,173.98,173.93,14.3731]
[1730094007575,5.7481,173.97,173.93,14.3731]
[1730094008099,5.7481,173.97,173.93,23.51929453]
[1730094008474,5.7481,173.97,173.94,9.14619453]
[1730094009603,5.7477,173.98,173.94,9.14619453]
[1730094010603,5.7477,173.98,173.93,23.51929453]
[1730094010803,9.27168453,173.96,173.9,29.6401]
[1730094011104,9.14619453,173.95,173.9,38.78629453]
[1730094011289,9.27168453,173.96,173.9,44.53669453]
[1730094011803,0.12549,173.97,173.92,9.14619453]
[1730094012202,5.7477,173.98,173.94,9.14619453]
[1730094013995,5.7477,173.98,173.93,9.14619453]
[1730094014511,14.89389453,173.98,173.91,20.1253]
[1730094014681,9.14619453,173.96,173.9,30.16109453]
[1730094014889,9.14619453,173.95,173.9,30.16109453]
[1730094015380,0.12549,173.97,173.9,30.16109453]
[1730094015579,9.14619453,173.96,173.91,9.14619453]
[1730094015998,5.7487,173.95,173.91,9.14619453]
[1730094016805,5.7487,173.95,173.91,14.89619453]
[1730094017397,14.89459453,173.96,173.91,14.89619453]
[1730094017801,5.7484,173.96,173.91,14.89619453]
[1730094019116,14.89459453,173.96,173.91,14.89619453]
[1730094019709,9.14619453,173.94,173.9,29.6405]
[1730094020184,9.27168453,173.93,173.88,6.4894]
[1730094020389,9.14619453,173.92,173.87,29.27559453]
[1730094021312,14.89619453,173.92,173.87,29.27559453]
[1730094021814,5.75,173.92,173.87,29.27559453]
[1730094022115,5.75,173.92,173.88,9.14619453]
[1730094022296,5.7491,173.94,173.91,9.14619453]
[1730094023891,5.7491,173.94,173.9,9.14619453]
[1730094024417,5.7491,173.94,173.89,14.89669453]
[1730094024711,14.89529453,173.94,173.89,14.89669453]
[1730094025302,5.7491,173.94,173.89,14.89669453]
[1730094027215,5.7491,173.94,173.9,9.14619453]
[1730094027510,0.12549,173.95,173.91,9.14619453]
[1730094027718,25.7481,173.97,173.92,9.14619453]
[1730094027922,0.12549,173.96,173.92,9.14619453]
[1730094028094,0.12549,173.96,173.93,9.14619453]
[1730094028917,0.12549,173.96,173.92,9.14619453]
[1730094029416,5.87419,173.96,173.92,9.14619453]
[1730094029626,43.902374,174.01,173.95,9.14619453]
[1730094029804,0.12549,174.0,173.96,9.14619453]
[1730094029998,0.12549,174.0,173.95,9.14619453]
[1730094030798,0.12549,173.98,173.95,9.14619453]
[1730094031111,0.12549,173.98,173.96,9.14619453]
[1730094031600,0.12549,173.98,173.95,9.14619453]
[1730094032000,0.12549,173.98,173.94,9.14619453]
[1730094032297,9.14619453,173.97,173.92,16.2563]
[1730094032624,9.14619453,173.97,173.92,25.40249453]
[1730094032918,14.89449453,173.97,173.92,31.15209453]
[1730094033902,0.12549,173.96,173.92,25.40249453]
[1730094034916,0.12549,173.96,173.92,16.2563]
[1730094035211,9.27168453,173.96,173.92,16.2563]
[1730094035402,15.02028453,173.96,173.92,16.2563]
[1730094036208,15.02028453,173.96,173.9,35.75179453]
[1730094036619,9.14619453,173.95,173.9,35.75179453]
[1730094037612,5.749,173.95,173.91,9.14619453]
[1730094038630,5.749,173.95,173.91,14.89619453]
[1730094039122,5.87399,173.96,173.91,14.89619453]
[1730094039325,5.7479,173.98,173.95,9.14619453]
[1730094039917,5.7479,173.98,173.94,9.14619453]
[1730094040802,5.87359,173.97,173.94,9.14619453]
[1730094041723,5.7467,174.01,173.96,9.14619453]
[1730094041932,5.7467,174.01,173.98,9.14619453]
[1730094043139,25.87189,174.02,173.98,9.14619453]
[1730094044331,0.12549,174.02,174.0,9.14619453]
[1730094044625,5.7454,174.05,174.01,9.14619453]
[1730094044826,5.7454,174.05,174.02,9.14619453]
[1730094045025,5.7451,174.06,174.02,9.14619453]
[1730094046236,0.12549,174.05,174.02,9.14619453]
[1730094046408,0.12549,174.05,174.03,9.14619453]
[1730094046609,10.2234471,174.09,174.04,9.14619453]
[1730094047043,15.9675471,174.09,174.04,9.14619453]
[1730094047209,15.9675471,174.09,174.04,14.89189453]
[1730094047530,15.9675471,174.09,174.04,29.25639453]
[1730094047531,15.9676471,174.09,174.04,29.25639453]
[1730094048236,0.12549,174.08,174.04,29.25639453]
[1730094048421,5.86999,174.08,174.04,29.25639453]
[1730094048735,5.86999,174.08,174.04,23.51069453]
[1730094050130,5.86999,174.08,174.03,9.14619453]
[1730094050342,5.86999,174.08,174.04,9.14619453]
[1730094050543,10.2234471,174.09,174.05,9.14619453]
[1730094050730,5.7442,174.09,174.05,9.14619453]
[1730094051626,5.7434,174.11,174.07,9.14619453]
[1730094051820,6.3366669,174.12,174.08,9.14619453]
[1730094053226,0.5935669,174.12,174.08,14.89059453]
[1730094053543,6.3367669,174.12,174.09,9.14619453]
[1730094055421,15.48296143,174.12,174.07,9.14619453]
[1730094055726,9.14619453,174.11,174.06,31.11479453]
[1730094055922,15.48296143,174.12,174.07,9.14619453]
[1730094056122,15.48296143,174.12,174.06,16.2236]
[1730094056123,9.27168453,174.11,174.06,16.2236]
[1730094056325,9.27168453,174.11,174.06,25.36979453]
[1730094056725,6.3367669,174.12,174.08,9.14619453]
[1730094057337,6.3367669,174.12,174.09,9.14619453]
[1730094058948,6.3367669,174.12,174.08,9.14619453]
[1730094060256,0.12549,174.11,174.06,30.5864]
[1730094060430,9.27168453,174.11,174.06,25.36979453]
[1730094061432,9.27168453,174.11,174.06,16.2236]
[1730094062041,9.14619453,174.1,174.06,16.2236]
[1730094062243,0.12549,174.09,174.05,9.14619453]
[1730094062441,5.7444,174.08,174.05,9.14619453]
[1730094063834,5.7444,174.08,174.04,14.89179453]
[1730094064835,5.7444,174.08,174.03,20.4026]
[1730094064836,0.12549,174.07,174.03,9.14619453]
[1730094065036,9.14619453,174.05,174.02,16.6238]
[1730094065235,9.14619453,174.05,173.99,29.68909453]
[1730094065942,9.14619453,174.03,173.98,16.1733]
[1730094066137,9.27168453,174.04,173.98,31.06719453]
[1730094067460,5.7461,174.03,173.98,31.06719453]
[1730094067637,5.7461,174.03,173.98,25.31949453]
[1730094068148,5.7461,174.03,173.98,31.06709453]
[1730094069053,0.12549,174.02,173.98,25.31949453]
[1730094069356,0.12549,174.02,173.97,14.3698]
[1730094069357,9.14619453,174.01,173.97,14.3698]
[1730094069657,14.89329453,174.01,173.95,14.89489453]
[1730094069863,14.89329453,174.01,173.96,9.14619453]
[1730094070456,5.7471,174.01,173.97,9.14619453]
[1730094071240,5.7471,174.01,173.94,36.6679]
[1730094071241,33.04856853,174.0,173.94,36.6679]
[1730094071444,9.14619453,173.99,173.94,45.81409453]
[1730094071651,9.14619453,173.99,173.94,39.49629453]
[1730094071963,9.14619453,173.98,173.93,9.14619453]
[1730094072143,0.12549,173.98,173.93,9.14619453]
[1730094073042,0.12549,173.98,173.94,9.14619453]
[1730094073244,20.12549,173.99,173.95,9.14619453]
[1730094073449,5.7477,173.98,173.94,9.14619453]
[1730094074539,20.12549,174.03,173.95,9.14619453]
[1730094074738,20.1105,174.04,173.95,9.14619453]
[1730094074739,20.12549,174.0,173.95,9.14619453]
[1730094075273,9.14619453,173.99,173.94,9.14619453]
[1730094075438,9.14619453,173.99,173.93,5.7493]
[1730094075631,20.12549,174.0,173.9,22.9559]
[1730094075632,9.14619453,173.96,173.9,22.9559]
[1730094075870,9.14619453,173.97,173.91,9.14619453]
[1730094076036,0.12549,173.97,173.92,9.14619453]
[1730094076844,5.87389,173.97,173.92,9.14619453]
[1730094077369,5.87389,173.97,173.93,9.14619453]